[Event "*** Titled Tuesday 3|2 Blitz"]
[Site "Chess.com"]
[Date "2016.08.02"]
[Round "1"]
[White "simonachess"]
[Black "GianmarcoVaR"]
[Result "1/2-1/2"]
[WhiteElo "2114"]
[BlackElo "2444"]
[TimeControl "180+2"]
[EndTime "11:10:27 PDT"]
[Termination "Game drawn - insufficient material"]

1. d4 {[%clk 0:03:01.9]} 1... Nf6 {[%clk 0:02:54.8]} 2. c4 {[%clk 0:03:02.5]}
2... e6 {[%clk 0:02:56]} 3. Nf3 {[%clk 0:03:03.5]} 3... b6 {[%clk 0:02:57.2]} 4.
g3 {[%clk 0:03:04.4]} 4... Bb7 {[%clk 0:02:58.7]} 5. Bg2 {[%clk 0:03:05.5]} 5...
Bb4+ {[%clk 0:02:59.9]} 6. Bd2 {[%clk 0:03:05.1]} 6... c5 {[%clk 0:03:01.3]} 7.
O-O {[%clk 0:03:04.7]} 7... O-O {[%clk 0:02:45.4]} 8. Bxb4 {[%clk 0:02:58.3]}
8... cxb4 {[%clk 0:02:46.5]} 9. d5 {[%clk 0:02:59.7]} 9... Qc7 {[%clk
0:02:31.4]} 10. Qb3 {[%clk 0:02:39.8]} 10... a5 {[%clk 0:02:28.8]} 11. Nd4
{[%clk 0:02:35.4]} 11... Na6 {[%clk 0:02:24.9]} 12. Nb5 {[%clk 0:02:23]} 12...
Qe5 {[%clk 0:02:20.8]} 13. dxe6 {[%clk 0:02:21.6]} 13... Bxg2 {[%clk 0:02:12.8]}
14. exf7+ {[%clk 0:02:21.9]} 14... Rxf7 {[%clk 0:02:13.7]} 15. Kxg2 {[%clk
0:02:23.4]} 15... Qxe2 {[%clk 0:02:13.2]} 16. Nd6 {[%clk 0:02:15.7]} 16... Re7
{[%clk 0:02:04.9]} 17. c5+ {[%clk 0:02:15.2]} 17... Qe6 {[%clk 0:01:39.2]} 18.
cxb6 {[%clk 0:02:10.8]} 18... Nc5 {[%clk 0:01:38.2]} 19. Qxe6+ {[%clk 0:01:50]}
19... Rxe6 {[%clk 0:01:39.3]} 20. Rd1 {[%clk 0:01:47.1]} 20... Rb8 {[%clk
0:01:37.1]} 21. Nc4 {[%clk 0:01:41.1]} 21... a4 {[%clk 0:01:34.4]} 22. a3 {[%clk
0:01:32.5]} 22... bxa3 {[%clk 0:01:25.5]} 23. Rxa3 {[%clk 0:01:26.2]} 23... d5
{[%clk 0:01:25.9]} 24. Ne3 {[%clk 0:01:26.7]} 24... Rbxb6 {[%clk 0:01:21.4]} 25.
Nc3 {[%clk 0:01:21.6]} 25... Rxb2 {[%clk 0:01:16.9]} 26. Ncxd5 {[%clk
0:01:16.4]} 26... Nfe4 {[%clk 0:01:08.7]} 27. Nf4 {[%clk 0:00:55.9]} 27... Rxf2+
{[%clk 0:01:07.4]} 28. Kg1 {[%clk 0:00:56.9]} 28... Rb6 {[%clk 0:00:56.2]} 29.
Ng4 {[%clk 0:00:28.4]} 29... Rd2 {[%clk 0:00:44.1]} 30. Rxd2 {[%clk 0:00:25.6]}
30... Nxd2 {[%clk 0:00:44.8]} 31. Nd5 {[%clk 0:00:23.1]} 31... Rb3 {[%clk
0:00:39.3]} 32. Ra2 {[%clk 0:00:22.4]} 32... Nde4 {[%clk 0:00:37.1]} 33. Ne5
{[%clk 0:00:19.7]} 33... a3 {[%clk 0:00:37.4]} 34. Nc4 {[%clk 0:00:18.6]} 34...
Rb1+ {[%clk 0:00:15.4]} 35. Kg2 {[%clk 0:00:19.2]} 35... Rd1 {[%clk 0:00:14.4]}
36. Nde3 {[%clk 0:00:17.9]} 36... Re1 {[%clk 0:00:12.7]} 37. Rxa3 {[%clk
0:00:13.8]} 37... Re2+ {[%clk 0:00:13.8]} 38. Kg1 {[%clk 0:00:15.2]} 38... h6
{[%clk 0:00:11]} 39. Nf1 {[%clk 0:00:09.2]} 39... Ng5 {[%clk 0:00:10]} 40. Re3
{[%clk 0:00:07.6]} 40... Nh3+ {[%clk 0:00:10.6]} 41. Kh1 {[%clk 0:00:08.9]}
41... Rf2 {[%clk 0:00:08.3]} 42. Ncd2 {[%clk 0:00:08.1]} 42... Ng5 {[%clk
0:00:07.3]} 43. Kg1 {[%clk 0:00:07.4]} 43... Nh3+ {[%clk 0:00:07.7]} 44. Kh1
{[%clk 0:00:08.6]} 44... Nd7 {[%clk 0:00:07.5]} 45. Rf3 {[%clk 0:00:08]} 45...
Re2 {[%clk 0:00:08.3]} 46. Re3 {[%clk 0:00:08.8]} 46... Rf2 {[%clk 0:00:09.8]}
47. Rf3 {[%clk 0:00:10]} 47... Ne5 {[%clk 0:00:11.3]} 48. Rxf2 {[%clk
0:00:10.7]} 48... Nxf2+ {[%clk 0:00:13.2]} 49. Kg2 {[%clk 0:00:12.5]} 49... Nfg4
{[%clk 0:00:15.1]} 50. h3 {[%clk 0:00:13.2]} 50... Nf6 {[%clk 0:00:16.4]} 51.
Nf3 {[%clk 0:00:14.4]} 51... Nc4 {[%clk 0:00:18]} 52. Kf2 {[%clk 0:00:14.6]}
52... Ne4+ {[%clk 0:00:18.5]} 53. Kg2 {[%clk 0:00:16.3]} 53... Kf7 {[%clk
0:00:19.5]} 54. g4 {[%clk 0:00:17.7]} 54... g5 {[%clk 0:00:20.6]} 55. Ne1 {[%clk
0:00:18.3]} 55... Ke6 {[%clk 0:00:21.1]} 56. Nf3 {[%clk 0:00:19.7]} 56... Kd5
{[%clk 0:00:22]} 57. h4 {[%clk 0:00:20.7]} 57... Ne5 {[%clk 0:00:15.3]} 58. hxg5
{[%clk 0:00:18.1]} 58... hxg5 {[%clk 0:00:16.6]} 59. Nxe5 {[%clk 0:00:18.8]}
59... Kxe5 {[%clk 0:00:18]} 60. Nh2 {[%clk 0:00:19.2]} 60... Kf4 {[%clk
0:00:18.8]} 61. Nf3 {[%clk 0:00:19.5]} 61... Nf6 {[%clk 0:00:17.6]} 62. Nxg5
{[%clk 0:00:20.3]} 62... Kxg5 {[%clk 0:00:18]} 63. Kg3 {[%clk 0:00:21.6]} 63...
Nxg4 {[%clk 0:00:18.5]} 1/2-1/2

[Event "*** Titled Tuesday 3|2 Blitz"]
[Site "Chess.com"]
[Date "2016.08.02"]
[Round "1"]
[White "CroatianPower"]
[Black "macko06"]
[Result "0-1"]
[WhiteElo "2421"]
[BlackElo "2107"]
[TimeControl "180+2"]
[EndTime "11:11:38 PDT"]
[Termination "macko06 won by resignation"]

1. d4 {[%clk 0:02:58.2]} 1... Nf6 {[%clk 0:03:00.4]} 2. c4 {[%clk 0:02:58.8]}
2... e6 {[%clk 0:03:01.4]} 3. Nf3 {[%clk 0:02:59]} 3... c5 {[%clk 0:03:02.5]} 4.
d5 {[%clk 0:03:00.2]} 4... exd5 {[%clk 0:03:04.4]} 5. cxd5 {[%clk 0:03:02.1]}
5... d6 {[%clk 0:03:05.5]} 6. Nc3 {[%clk 0:03:03.4]} 6... g6 {[%clk 0:03:07.1]}
7. e4 {[%clk 0:03:04.7]} 7... Bg7 {[%clk 0:03:08.7]} 8. Be2 {[%clk 0:03:06.2]}
8... O-O {[%clk 0:03:09.8]} 9. O-O {[%clk 0:03:07.4]} 9... Re8 {[%clk
0:03:10.4]} 10. Nd2 {[%clk 0:03:08.3]} 10... Na6 {[%clk 0:03:08.4]} 11. f3
{[%clk 0:03:06.3]} 11... Nc7 {[%clk 0:03:09.1]} 12. Re1 {[%clk 0:03:06.8]} 12...
Bd7 {[%clk 0:03:04.2]} 13. a4 {[%clk 0:03:07]} 13... b6 {[%clk 0:03:05]} 14. Nc4
{[%clk 0:02:58.6]} 14... Bc8 {[%clk 0:03:00.7]} 15. Bf4 {[%clk 0:02:41.8]} 15...
Bf8 {[%clk 0:03:00.2]} 16. Qd2 {[%clk 0:02:35.4]} 16... Ba6 {[%clk 0:02:56.6]}
17. Na3 {[%clk 0:02:27.6]} 17... Bxe2 {[%clk 0:02:56.6]} 18. Rxe2 {[%clk
0:02:28.9]} 18... a6 {[%clk 0:02:54.2]} 19. Nc4 {[%clk 0:02:16.1]} 19... Rb8
{[%clk 0:02:49.2]} 20. Rd1 {[%clk 0:01:56.4]} 20... Nh5 {[%clk 0:02:41.8]} 21.
Bg5 {[%clk 0:01:55.5]} 21... f6 {[%clk 0:02:38.5]} 22. Bh4 {[%clk 0:01:32]}
22... Qd7 {[%clk 0:02:19.4]} 23. g4 {[%clk 0:01:26.7]} 23... g5 {[%clk
0:02:18.4]} 24. gxh5 {[%clk 0:01:20.4]} 24... gxh4 {[%clk 0:02:18.9]} 25. Ne3
{[%clk 0:01:21.2]} 25... Bh6 {[%clk 0:02:13.9]} 26. Rg2+ {[%clk 0:01:11.5]}
26... Kh8 {[%clk 0:02:10.9]} 27. Qf2 {[%clk 0:01:11.6]} 27... h3 {[%clk
0:02:06.9]} 28. Rg3 {[%clk 0:01:04.5]} 28... Bf4 {[%clk 0:01:59.9]} 29. Nf5
{[%clk 0:01:01.5]} 29... Rg8 {[%clk 0:01:50.1]} 30. Ne2 {[%clk 0:00:56.1]} 30...
Bxg3 {[%clk 0:01:40.6]} 31. hxg3 {[%clk 0:00:57.6]} 31... Rg5 {[%clk 0:01:32.8]}
32. g4 {[%clk 0:00:55.5]} 32... b5 {[%clk 0:01:31]} 33. a5 {[%clk 0:00:55.8]}
33... Rbg8 {[%clk 0:01:22.5]} 34. Kh2 {[%clk 0:00:51.4]} 34... Ne8 {[%clk
0:01:15.7]} 35. h6 {[%clk 0:00:47.5]} 35... Qc7 {[%clk 0:01:07.6]} 36. Qe1
{[%clk 0:00:39.8]} 36... b4 {[%clk 0:01:04.2]} 37. Nf4 {[%clk 0:00:38.8]} 37...
Qxa5 {[%clk 0:00:57]} 38. Nxh3 {[%clk 0:00:39.6]} 38... R5g6 {[%clk 0:00:56.6]}
39. Nf4 {[%clk 0:00:40.7]} 39... Rg5 {[%clk 0:00:56.3]} 40. Ne7 {[%clk
0:00:35.1]} 40... Rf8 {[%clk 0:00:50.2]} 41. Ne6 {[%clk 0:00:35.8]} 41... Rf7
{[%clk 0:00:49.8]} 42. Nc6 {[%clk 0:00:33.7]} 42... Qa2 {[%clk 0:00:48.2]} 43.
Nxg5 {[%clk 0:00:29.2]} 43... fxg5 {[%clk 0:00:47.8]} 44. Rd2 {[%clk 0:00:29.4]}
44... Qb3 {[%clk 0:00:42.1]} 45. Rf2 {[%clk 0:00:17.6]} 45... Rxf3 {[%clk
0:00:37.4]} 46. Qf1 {[%clk 0:00:12]} 46... Rf4 {[%clk 0:00:21.4]} 47. Rxf4
{[%clk 0:00:11.9]} 47... gxf4 {[%clk 0:00:23.3]} 48. Qxf4 {[%clk 0:00:13.2]}
48... Qxb2+ {[%clk 0:00:24.2]} 49. Kh3 {[%clk 0:00:14.2]} 49... Qf6 {[%clk
0:00:25.6]} 50. Qd2 {[%clk 0:00:07.2]} 50... Qc3+ {[%clk 0:00:25]} 51. Qxc3+
{[%clk 0:00:06.8]} 51... bxc3 {[%clk 0:00:26.9]} 52. Na5 {[%clk 0:00:07.6]}
52... c2 {[%clk 0:00:28.3]} 53. Nb3 {[%clk 0:00:09.2]} 53... Nf6 {[%clk
0:00:29.3]} 54. e5 {[%clk 0:00:08.9]} 54... dxe5 {[%clk 0:00:28.1]} 55. d6
{[%clk 0:00:10.5]} 55... c4 {[%clk 0:00:29.5]} 56. Nc1 {[%clk 0:00:11.7]} 56...
Kg8 {[%clk 0:00:31]} 57. g5 {[%clk 0:00:13.3]} 57... Nd7 {[%clk 0:00:31.6]} 58.
Kg4 {[%clk 0:00:14.9]} 58... Kf7 {[%clk 0:00:31.9]} 59. Kf5 {[%clk 0:00:16.6]}
59... Nf8 {[%clk 0:00:31.1]} 60. Kxe5 {[%clk 0:00:17.5]} 60... Kg6 {[%clk
0:00:32.7]} 61. Kf4 {[%clk 0:00:16]} 61... Ne6+ {[%clk 0:00:32.6]} 62. Ke5
{[%clk 0:00:15.3]} 62... Nxg5 {[%clk 0:00:34]} 63. Kd5 {[%clk 0:00:14.4]} 63...
Kf6 {[%clk 0:00:31.4]} 64. Kxc4 {[%clk 0:00:12.9]} 64... Ke6 {[%clk 0:00:32.8]}
65. Kc5 {[%clk 0:00:14.5]} 65... Kd7 {[%clk 0:00:33.3]} 66. Kd5 {[%clk
0:00:15.5]} 66... Nf7 {[%clk 0:00:34.3]} 67. Kc4 {[%clk 0:00:15.3]} 67... Nxd6+
{[%clk 0:00:35.7]} 68. Kc3 {[%clk 0:00:17.2]} 68... Nf5 {[%clk 0:00:37.1]} 69.
Kxc2 {[%clk 0:00:19.1]} 69... Nxh6 {[%clk 0:00:38.7]} 70. Kd3 {[%clk 0:00:20.6]}
70... Kc6 {[%clk 0:00:40]} 71. Ke4 {[%clk 0:00:21.7]} 71... Nf7 {[%clk
0:00:40.1]} 72. Kf5 {[%clk 0:00:23]} 72... a5 {[%clk 0:00:39.5]} 73. Kf6 {[%clk
0:00:24.5]} 73... Nd6 {[%clk 0:00:40]} 74. Kg5 {[%clk 0:00:25.4]} 74... a4
{[%clk 0:00:38.9]} 75. Kh6 {[%clk 0:00:25.4]} 75... Kc5 {[%clk 0:00:40.2]} 76.
Kxh7 {[%clk 0:00:26.8]} 76... Kc4 {[%clk 0:00:41.6]} 77. Kg6 {[%clk 0:00:28]}
77... Kc3 {[%clk 0:00:43]} 78. Kf6 {[%clk 0:00:29.2]} 78... Kb2 {[%clk
0:00:44.4]} 79. Nd3+ {[%clk 0:00:30.7]} 79... Kc2 {[%clk 0:00:43.5]} 80. Nb4+
{[%clk 0:00:30.7]} 80... Kb3 {[%clk 0:00:44.9]} 81. Nd3 {[%clk 0:00:31]} 81...
a3 {[%clk 0:00:44.7]} 82. Ke5 {[%clk 0:00:32.5]} 82... Nb5 {[%clk 0:00:42]} 83.
Ke4 {[%clk 0:00:31.4]} 83... Kc3 {[%clk 0:00:40.5]} 84. Nc1 {[%clk 0:00:31.7]}
84... Kc2 {[%clk 0:00:37.7]} 85. Na2 {[%clk 0:00:32.2]} 85... Nc3+ {[%clk
0:00:39]} 0-1

[Event "*** Titled Tuesday 3|2 Blitz"]
[Site "Chess.com"]
[Date "2016.08.02"]
[Round "1"]
[White "E-Shaposhnikov"]
[Black "oskariot"]
[Result "0-1"]
[WhiteElo "2694"]
[BlackElo "2364"]
[TimeControl "180+2"]
[EndTime "11:15:02 PDT"]
[Termination "oskariot won by resignation"]

1. Nf3 {[%clk 0:02:54.2]} 1... c5 {[%clk 0:03:00.1]} 2. c4 {[%clk 0:02:49.3]}
2... Nf6 {[%clk 0:03:00.4]} 3. Nc3 {[%clk 0:02:45.4]} 3... g6 {[%clk 0:02:59.3]}
4. g3 {[%clk 0:02:40.6]} 4... Bg7 {[%clk 0:02:59.3]} 5. Bg2 {[%clk 0:02:33.8]}
5... O-O {[%clk 0:03:00.2]} 6. O-O {[%clk 0:02:24.7]} 6... Nc6 {[%clk
0:03:00.6]} 7. d4 {[%clk 0:02:26]} 7... cxd4 {[%clk 0:03:02.5]} 8. Nxd4 {[%clk
0:02:27.5]} 8... Ng4 {[%clk 0:02:59.1]} 9. e3 {[%clk 0:02:27.6]} 9... d6 {[%clk
0:02:59.2]} 10. b3 {[%clk 0:02:19.3]} 10... Nxd4 {[%clk 0:02:52.1]} 11. exd4
{[%clk 0:02:18.8]} 11... Nh6 {[%clk 0:02:54]} 12. Bxh6 {[%clk 0:01:53.5]} 12...
Bxh6 {[%clk 0:02:53.2]} 13. Re1 {[%clk 0:01:55.4]} 13... Rb8 {[%clk 0:02:28.1]}
14. Qd3 {[%clk 0:01:39.1]} 14... Re8 {[%clk 0:02:16.3]} 15. h4 {[%clk
0:01:34.9]} 15... a6 {[%clk 0:02:14.1]} 16. Bf3 {[%clk 0:01:31.8]} 16... Bg7
{[%clk 0:01:46.4]} 17. h5 {[%clk 0:01:31.1]} 17... Qa5 {[%clk 0:01:26.4]} 18.
Nd5 {[%clk 0:01:28.3]} 18... Qd8 {[%clk 0:01:17.6]} 19. hxg6 {[%clk 0:01:26.6]}
19... hxg6 {[%clk 0:01:17.9]} 20. Kg2 {[%clk 0:01:28.2]} 20... Bf5 {[%clk
0:01:12.9]} 21. Be4 {[%clk 0:01:28.2]} 21... Bxe4+ {[%clk 0:01:08.4]} 22. Rxe4
{[%clk 0:01:22.8]} 22... e6 {[%clk 0:01:09.2]} 23. Nf4 {[%clk 0:01:22.7]} 23...
d5 {[%clk 0:01:03.9]} 24. cxd5 {[%clk 0:01:21.7]} 24... exd5 {[%clk 0:01:04.1]}
25. Rxe8+ {[%clk 0:01:21.1]} 25... Qxe8 {[%clk 0:01:06]} 26. Nxd5 {[%clk
0:01:22.6]} 26... Rd8 {[%clk 0:00:59.4]} 27. Qf3 {[%clk 0:01:18.4]} 27... Qd7
{[%clk 0:00:51.1]} 28. Nf4 {[%clk 0:01:10.9]} 28... Qxd4 {[%clk 0:00:50.3]} 29.
Re1 {[%clk 0:01:10]} 29... b5 {[%clk 0:00:44]} 30. Re7 {[%clk 0:01:09.6]} 30...
Qf6 {[%clk 0:00:29]} 31. Ra7 {[%clk 0:01:05.8]} 31... Rd2 {[%clk 0:00:28.9]} 32.
Qa8+ {[%clk 0:01:02]} 32... Kh7 {[%clk 0:00:28.9]} 33. Rxa6 {[%clk 0:01:02.3]}
33... Qd4 {[%clk 0:00:26.7]} 34. Nh3 {[%clk 0:01:01.5]} 34... Bh6 {[%clk
0:00:20.9]} 35. Qf3 {[%clk 0:01:00.6]} 35... Kg7 {[%clk 0:00:20]} 36. Rc6 {[%clk
0:00:42.1]} 36... Rxa2 {[%clk 0:00:19.3]} 37. Rc7 {[%clk 0:00:41]} 37... Qf6
{[%clk 0:00:18.7]} 38. Qxf6+ {[%clk 0:00:37]} 38... Kxf6 {[%clk 0:00:20.6]} 39.
Rb7 {[%clk 0:00:38.1]} 39... Ra5 {[%clk 0:00:20.4]} 40. f4 {[%clk 0:00:37.4]}
40... Bf8 {[%clk 0:00:20.9]} 41. Ng5 {[%clk 0:00:36.6]} 41... Be7 {[%clk
0:00:21.9]} 42. Ne4+ {[%clk 0:00:34.9]} 42... Ke6 {[%clk 0:00:22.8]} 43. Nc3
{[%clk 0:00:29.9]} 43... b4 {[%clk 0:00:22.5]} 44. Na4 {[%clk 0:00:31.4]} 44...
Rd5 {[%clk 0:00:22.7]} 45. Rb6+ {[%clk 0:00:26.1]} 45... Kf5 {[%clk 0:00:21.9]}
46. Rb7 {[%clk 0:00:27.2]} 46... Kf6 {[%clk 0:00:22.6]} 47. Nb6 {[%clk
0:00:26.4]} 47... Rd3 {[%clk 0:00:22.5]} 48. Nd7+ {[%clk 0:00:27.4]} 48... Ke6
{[%clk 0:00:20.3]} 49. Ne5 {[%clk 0:00:26.6]} 49... Rxb3 {[%clk 0:00:20.4]} 50.
Rb6+ {[%clk 0:00:28.2]} 50... Kf5 {[%clk 0:00:15.9]} 51. Nxf7 {[%clk 0:00:28.8]}
51... Rb2+ {[%clk 0:00:14.4]} 52. Kf3 {[%clk 0:00:30]} 52... Rb3+ {[%clk
0:00:15.9]} 53. Kg2 {[%clk 0:00:31.3]} 53... Rb2+ {[%clk 0:00:17.1]} 54. Kh3
{[%clk 0:00:23.8]} 54... Rb1 {[%clk 0:00:16.2]} 55. Rb5+ {[%clk 0:00:23.7]}
55... Kf6 {[%clk 0:00:16.6]} 56. Ng5 {[%clk 0:00:23.2]} 56... b3 {[%clk
0:00:17.7]} 57. Rb6+ {[%clk 0:00:17.6]} 57... Kf5 {[%clk 0:00:17.1]} 58. Rb5+
{[%clk 0:00:16.3]} 58... Kf6 {[%clk 0:00:18.2]} 59. Kg4 {[%clk 0:00:17.8]} 59...
b2 {[%clk 0:00:18.1]} 60. Rb6+ {[%clk 0:00:18.9]} 60... Kg7 {[%clk 0:00:18.8]}
61. Rb7 {[%clk 0:00:20.5]} 61... Kf8 {[%clk 0:00:18.9]} 62. Rb8+ {[%clk
0:00:18.6]} 62... Kg7 {[%clk 0:00:19.8]} 63. Rb7 {[%clk 0:00:20.2]} 63... Kf8
{[%clk 0:00:19]} 64. Rb8+ {[%clk 0:00:18.7]} 64... Kg7 {[%clk 0:00:19.7]} 65.
Rb7 {[%clk 0:00:16.2]} 65... Kf8 {[%clk 0:00:19]} 66. Ne6+ {[%clk 0:00:13.2]}
66... Ke8 {[%clk 0:00:17.4]} 67. Nd4 {[%clk 0:00:10.1]} 67... Rd1 {[%clk
0:00:17.7]} 68. Rb8+ {[%clk 0:00:09.7]} 68... Kf7 {[%clk 0:00:18.1]} 69. Rxb2
{[%clk 0:00:10.9]} 69... Rxd4 {[%clk 0:00:19.3]} 70. Rb6 {[%clk 0:00:12.5]}
70... Rd3 {[%clk 0:00:20.4]} 71. Rb7 {[%clk 0:00:12.9]} 71... Kf6 {[%clk
0:00:21.2]} 72. Rb6+ {[%clk 0:00:14.1]} 72... Bd6 {[%clk 0:00:22.6]} 73. Ra6
{[%clk 0:00:14.1]} 73... Ke6 {[%clk 0:00:23.4]} 74. Ra7 {[%clk 0:00:14.5]} 74...
Kf6 {[%clk 0:00:24]} 75. Ra6 {[%clk 0:00:15.5]} 75... Kg7 {[%clk 0:00:25.1]} 76.
Kg5 {[%clk 0:00:14.8]} 76... Rd5+ {[%clk 0:00:25.7]} 77. Kg4 {[%clk 0:00:15.1]}
77... Rd3 {[%clk 0:00:27]} 78. Rb6 {[%clk 0:00:15.6]} 78... Kh6 {[%clk
0:00:27.6]} 79. Ra6 {[%clk 0:00:16.2]} 79... Bc5 {[%clk 0:00:24.6]} 80. f5
{[%clk 0:00:15.6]} 80... Bd6 {[%clk 0:00:25.6]} 81. fxg6 {[%clk 0:00:14.9]}
81... Kxg6 {[%clk 0:00:26.7]} 82. Kh4 {[%clk 0:00:12.4]} 82... Kf5 {[%clk
0:00:27.5]} 83. g4+ {[%clk 0:00:13]} 83... Ke6 {[%clk 0:00:23]} 84. g5 {[%clk
0:00:12.8]} 84... Kf5 {[%clk 0:00:22.8]} 85. Ra5+ {[%clk 0:00:08.2]} 85... Be5
{[%clk 0:00:23.2]} 86. Rb5 {[%clk 0:00:09.2]} 86... Rd2 {[%clk 0:00:22.4]} 87.
Rb3 {[%clk 0:00:07.4]} 87... Rh2+ {[%clk 0:00:19.7]} 88. Rh3 {[%clk 0:00:08.9]}
88... Rg2 {[%clk 0:00:20.8]} 89. Rf3+ {[%clk 0:00:09.1]} 89... Bf4 {[%clk
0:00:21.5]} 90. g6 {[%clk 0:00:08.7]} 90... Rxg6 {[%clk 0:00:21.4]} 91. Kh3
{[%clk 0:00:09.5]} 91... Rh6+ {[%clk 0:00:18.6]} 92. Kg2 {[%clk 0:00:10.5]}
92... Rh2+ {[%clk 0:00:17.3]} 93. Kf1 {[%clk 0:00:11.8]} 93... Ke4 {[%clk
0:00:18.2]} 94. Rf2 {[%clk 0:00:13.4]} 94... Rh1+ {[%clk 0:00:11.5]} 95. Kg2
{[%clk 0:00:14.4]} 95... Ra1 {[%clk 0:00:10]} 96. Rb2 {[%clk 0:00:15.5]} 96...
Be3 {[%clk 0:00:10.7]} 97. Rb4+ {[%clk 0:00:16.1]} 97... Bd4 {[%clk 0:00:11.7]}
98. Rb8 {[%clk 0:00:17.7]} 98... Rg1+ {[%clk 0:00:11.9]} 99. Kh2 {[%clk
0:00:18.3]} 99... Rg6 {[%clk 0:00:11.5]} 100. Rf8 {[%clk 0:00:18.9]} 100... Be3
{[%clk 0:00:09.7]} 101. Rf7 {[%clk 0:00:19.2]} 101... Bf4+ {[%clk 0:00:10.7]}
102. Kh3 {[%clk 0:00:20.1]} 102... Kf3 {[%clk 0:00:11.4]} 103. Rh7 {[%clk
0:00:17.8]} 103... Rg1 {[%clk 0:00:12.2]} 0-1

[Event "*** Titled Tuesday 3|2 Blitz"]
[Site "Chess.com"]
[Date "2016.08.02"]
[Round "2"]
[White "Quiet_Desperation"]
[Black "ZEN-22"]
[Result "1-0"]
[WhiteElo "2143"]
[BlackElo "2300"]
[TimeControl "180+2"]
[EndTime "11:18:27 PDT"]
[Termination "Quiet_Desperation won by checkmate"]

1. e4 {[%clk 0:03:01.9]} 1... d5 {[%clk 0:03:00.4]} 2. exd5 {[%clk 0:03:02.7]}
2... c6 {[%clk 0:03:01.9]} 3. d4 {[%clk 0:03:02]} 3... cxd5 {[%clk 0:03:00.5]}
4. Nf3 {[%clk 0:03:02.9]} 4... Nf6 {[%clk 0:03:01]} 5. h3 {[%clk 0:03:03.5]}
5... a6 {[%clk 0:03:01.3]} 6. Bd3 {[%clk 0:03:04.2]} 6... Nc6 {[%clk 0:03:02.6]}
7. c3 {[%clk 0:03:05.3]} 7... g6 {[%clk 0:03:01.9]} 8. O-O {[%clk 0:03:06.1]}
8... Bg7 {[%clk 0:03:03.8]} 9. Re1 {[%clk 0:03:07.4]} 9... O-O {[%clk
0:03:05.3]} 10. Na3 {[%clk 0:03:06.4]} 10... b5 {[%clk 0:03:06.3]} 11. Nc2
{[%clk 0:03:07.6]} 11... Rb8 {[%clk 0:03:07.6]} 12. Bf4 {[%clk 0:03:08]} 12...
Rb7 {[%clk 0:03:08.8]} 13. Qd2 {[%clk 0:03:00]} 13... Re8 {[%clk 0:03:08.6]} 14.
Re2 {[%clk 0:03:00.3]} 14... Bf5 {[%clk 0:03:08.3]} 15. Rae1 {[%clk 0:02:59.2]}
15... Bxd3 {[%clk 0:03:09]} 16. Qxd3 {[%clk 0:03:00.5]} 16... e6 {[%clk
0:03:10.4]} 17. Bg5 {[%clk 0:02:59]} 17... Qc8 {[%clk 0:03:10.5]} 18. Ne3 {[%clk
0:02:52.1]} 18... Ne4 {[%clk 0:03:10.4]} 19. Bf4 {[%clk 0:02:50]} 19... Na5
{[%clk 0:03:10.2]} 20. Be5 {[%clk 0:02:47.8]} 20... Bf8 {[%clk 0:03:09.8]} 21.
Ng4 {[%clk 0:02:35]} 21... f5 {[%clk 0:03:10]} 22. Rxe4 {[%clk 0:02:33.1]} 22...
dxe4 {[%clk 0:03:10.6]} 23. Nf6+ {[%clk 0:02:34.6]} 23... Kf7 {[%clk 0:03:11.5]}
24. Ng5+ {[%clk 0:02:35.1]} 24... Ke7 {[%clk 0:03:10.3]} 25. Qg3 {[%clk
0:02:19.4]} 25... h6 {[%clk 0:03:10.2]} 26. Ngxe4 {[%clk 0:01:54.4]} 26... fxe4
{[%clk 0:03:06.7]} 27. Qxg6 {[%clk 0:01:54.8]} 27... Kd8 {[%clk 0:03:07.8]} 28.
Qxe8# {[%clk 0:01:53.7]} 1-0

[Event "*** Titled Tuesday 3|2 Blitz"]
[Site "Chess.com"]
[Date "2016.08.02"]
[Round "2"]
[White "Gabrielian_Artur"]
[Black "DanielRensch"]
[Result "1-0"]
[WhiteElo "2551"]
[BlackElo "2506"]
[TimeControl "180+2"]
[EndTime "11:19:38 PDT"]
[Termination "Gabrielian_Artur won by resignation"]

1. e4 {[%clk 0:03:00.4]} 1... c5 {[%clk 0:02:59.7]} 2. Nf3 {[%clk 0:03:01.2]}
2... d6 {[%clk 0:03:00.9]} 3. d4 {[%clk 0:03:02.2]} 3... cxd4 {[%clk 0:03:02.8]}
4. Nxd4 {[%clk 0:03:03.5]} 4... Nf6 {[%clk 0:03:04.4]} 5. Nc3 {[%clk 0:03:05]}
5... a6 {[%clk 0:03:06.1]} 6. Bg5 {[%clk 0:03:06.1]} 6... e6 {[%clk 0:03:07.1]}
7. f4 {[%clk 0:03:02.7]} 7... Nc6 {[%clk 0:03:08.7]} 8. Nxc6 {[%clk 0:03:02.5]}
8... bxc6 {[%clk 0:03:10.6]} 9. e5 {[%clk 0:03:03.7]} 9... h6 {[%clk 0:03:12.1]}
10. Bh4 {[%clk 0:03:04.6]} 10... g5 {[%clk 0:03:13.7]} 11. fxg5 {[%clk 0:03:05]}
11... Nd5 {[%clk 0:03:14.9]} 12. Ne4 {[%clk 0:03:05.6]} 12... hxg5 {[%clk
0:03:14.1]} 13. Bxg5 {[%clk 0:03:04.3]} 13... Qb6 {[%clk 0:03:13.8]} 14. c4
{[%clk 0:02:56.9]} 14... Qxb2 {[%clk 0:03:04.5]} 15. cxd5 {[%clk 0:02:32.6]}
15... Qxe5 {[%clk 0:03:04.1]} 16. Bd3 {[%clk 0:02:21.6]} 16... cxd5 {[%clk
0:03:01.6]} 17. Bf6 {[%clk 0:02:21]} 17... Rxh2 {[%clk 0:02:44]} 18. Bxe5 {[%clk
0:01:58.8]} 18... Rxh1+ {[%clk 0:02:38.4]} 19. Bf1 {[%clk 0:01:59.8]} 19... dxe5
{[%clk 0:02:39.8]} 20. Qa4+ {[%clk 0:01:58.4]} 20... Bd7 {[%clk 0:02:39.7]} 21.
Nf6+ {[%clk 0:01:59.1]} 21... Ke7 {[%clk 0:02:41]} 22. Nxd7 {[%clk 0:01:59.2]}
22... Rc8 {[%clk 0:02:27.4]} 23. Nxf8 {[%clk 0:01:56.8]} 23... Kxf8 {[%clk
0:02:26.6]} 24. Qa3+ {[%clk 0:01:55.2]} 24... Kg7 {[%clk 0:02:11.7]} 25. Rc1
{[%clk 0:01:55.7]} 25... Rch8 {[%clk 0:02:09.5]} 26. Rc7 {[%clk 0:01:53.9]} 1-0

[Event "*** Titled Tuesday 3|2 Blitz"]
[Site "Chess.com"]
[Date "2016.08.02"]
[Round "2"]
[White "macko06"]
[Black "VennyIce"]
[Result "0-1"]
[WhiteElo "2094"]
[BlackElo "1866"]
[TimeControl "180+2"]
[EndTime "11:19:44 PDT"]
[Termination "VennyIce won by checkmate"]

1. e4 {[%clk 0:02:57.8]} 1... c6 {[%clk 0:02:58.6]} 2. d4 {[%clk 0:02:57.9]}
2... d5 {[%clk 0:02:59.4]} 3. Nc3 {[%clk 0:02:57.6]} 3... dxe4 {[%clk
0:02:59.9]} 4. Nxe4 {[%clk 0:02:59.5]} 4... Nf6 {[%clk 0:03:00.4]} 5. Ng3 {[%clk
0:02:59.5]} 5... Bg4 {[%clk 0:02:59.3]} 6. Nf3 {[%clk 0:02:59.3]} 6... e6 {[%clk
0:02:59.5]} 7. c3 {[%clk 0:03:00]} 7... Nbd7 {[%clk 0:03:00.4]} 8. h3 {[%clk
0:03:01.1]} 8... Bxf3 {[%clk 0:03:00.1]} 9. Qxf3 {[%clk 0:03:03]} 9... Bd6
{[%clk 0:03:00.7]} 10. Bd3 {[%clk 0:03:02.4]} 10... Qc7 {[%clk 0:03:01.1]} 11.
O-O {[%clk 0:03:01.3]} 11... O-O-O {[%clk 0:03:01.3]} 12. a4 {[%clk 0:03:01.5]}
12... Rdg8 {[%clk 0:03:01.5]} 13. Ne4 {[%clk 0:03:01.4]} 13... Nxe4 {[%clk
0:03:01.3]} 14. Bxe4 {[%clk 0:03:02.3]} 14... Nf6 {[%clk 0:03:02.2]} 15. Bd3
{[%clk 0:03:02.5]} 15... h5 {[%clk 0:03:02.3]} 16. b4 {[%clk 0:03:00.6]} 16...
Nd5 {[%clk 0:03:02]} 17. Bd2 {[%clk 0:02:57.7]} 17... g5 {[%clk 0:03:01.6]} 18.
g4 {[%clk 0:02:30]} 18... hxg4 {[%clk 0:03:00.7]} 19. hxg4 {[%clk 0:02:30.9]}
19... Bf4 {[%clk 0:02:49.6]} 20. Be1 {[%clk 0:02:14.1]} 20... Bh2+ {[%clk
0:02:29.3]} 21. Kg2 {[%clk 0:02:04]} 21... Nf4+ {[%clk 0:02:24.1]} 22. Kh1
{[%clk 0:02:05.6]} 22... Rh3 {[%clk 0:02:08.2]} 23. Qe4 {[%clk 0:01:53.7]} 23...
Nxd3 {[%clk 0:02:04]} 24. Bd2 {[%clk 0:01:37.3]} 24... Bg1+ {[%clk 0:01:58.5]}
25. Kxg1 {[%clk 0:01:36.8]} 25... Qh2# {[%clk 0:01:58.1]} 0-1